fUST/lending_fUST_20250520
["ID","MTS","AMOUNT","RATE_DAILY","PERIOD"]
[361725942,1747731044248,-430.0,0.00016986,2]
[361725943,1747731044257,-966.87,0.00016986,2]
[361725944,1747731044267,-460.44,0.00016986,2]
[361725945,1747731044276,-1701.32,0.00016986,2]
[361725946,1747731044286,-430.0,0.00016986,2]
[361725947,1747731044295,-430.0,0.00016986,2]
[361725948,1747731044304,-430.0,0.00016986,2]
[361725949,1747731044313,-459.15,0.00016986,2]
[361725950,1747731044323,-430.0,0.00016986,2]
[361725951,1747731044333,-2370.11,0.00016986,2]
[361725952,1747731044344,-430.0,0.00016986,2]
[361725953,1747731044354,-430.0,0.00016986,2]
[361725954,1747731044363,-430.0,0.00016986,2]
[361725955,1747731044373,-625.7,0.00016986,2]
[361725956,1747731044385,-3187.58,0.00016986,2]
[361725957,1747731044395,-1067.96,0.00016986,2]
[361725958,1747731044404,-432.00431272,0.00016986,2]
[361725959,1747731044415,-1170.88,0.00016986,2]
[361725960,1747731044425,-430.0,0.00016986,2]
[361725961,1747731044434,-1394.59,0.00016986,2]
[361725962,1747731044444,-430.0,0.00016986,2]
[361725963,1747731044453,-490.0,0.00016986,2]
[361725964,1747731044463,-430.0,0.00016986,2]
[361725965,1747731044473,-207.81000839,0.00016986,2]
[361725966,1747731044482,-714.5,0.00016986,2]
[361725967,1747731044491,-430.0,0.00016986,2]
[361725968,1747731044501,-430.0,0.00016986,2]
[361725969,1747731044511,-1023.23,0.00016986,2]
[361725970,1747731044521,-430.0,0.00016986,2]
[361725971,1747731044531,-845.18,0.00016986,2]
[361725972,1747731044540,-430.0,0.00016986,2]
[361725973,1747731044550,-430.0,0.00016986,2]
[361725974,1747731044560,-430.0,0.00016986,2]
[361725975,1747731044569,-443.52,0.00016986,2]
[361725976,1747731044579,-605.02,0.00016986,2]
[361725977,1747731044592,-430.0,0.00016986,2]
[361725978,1747731044602,-430.0,0.00016986,2]
[361725979,1747731044611,-430.0,0.00016986,2]
[361725980,1747731044621,-430.0,0.00016986,2]
[361725981,1747731044630,-430.0,0.00016986,2]
[361725982,1747731044639,-1425.83,0.00016986,2]
[361725983,1747731044649,-430.0,0.00016986,2]
[361725984,1747731044658,-649.17,0.00016986,2]
[361725985,1747731044668,-430.0,0.00016986,2]
[361725986,1747731044677,-430.0,0.00016986,2]
[361725987,1747731044687,-683.89,0.00016986,2]
[361725988,1747731044696,-845.85,0.00016986,2]
[361725989,1747731044706,-524.36,0.00016986,2]
[361725990,1747731044716,-1834.61,0.00016986,2]
[361725991,1747731044725,-832.7,0.00016986,2]
[361725992,1747731044736,-4757.36,0.00016986,2]
[361725993,1747731044745,-1280.71,0.00016986,2]
[361725994,1747731044755,-1301.44,0.00016986,2]
[361725995,1747731044765,-430.0,0.00016986,2]
[361725996,1747731044775,-1033.93,0.00016986,2]
[361725997,1747731044784,-430.0,0.00016986,2]
[361725998,1747731044794,-574.71,0.00016986,2]
[361725999,1747731044804,-511.08,0.00016986,2]
[361726000,1747731044814,-430.0,0.00016986,2]
[361726001,1747731044824,-430.0,0.00016986,2]
[361726002,1747731044834,-340.0,0.00016986,2]
[361726003,1747731044843,-493.54,0.00016986,2]
[361726004,1747731044853,-582.09,0.00016986,2]
[361726005,1747731044863,-430.0,0.00016986,2]
[361726006,1747731044872,-2227.23,0.00016986,2]
[361726007,1747731044882,-865.79,0.00016986,2]
[361726008,1747731044891,-296.11450631,0.00016986,2]
[361726009,1747731044901,-827.76,0.00016986,2]
[361726010,1747731044910,-813.4,0.00016986,2]
[361726011,1747731044920,-430.0,0.00016986,2]
[361726012,1747731044930,-430.0,0.00016986,2]
[361726013,1747731044940,-430.0,0.00016986,2]
[361726014,1747731044950,-186.2,0.00016986,2]
[361726015,1747731044960,-1058.24,0.00016986,2]
[361726016,1747731044970,-812.09,0.00016986,2]
[361726017,1747731044980,-490.29,0.00016986,2]
[361726018,1747731044990,-761.83,0.00016986,2]
[361726019,1747731044999,-563.72,0.00016986,2]
[361726020,1747731045009,-477.65,0.00016986,2]
[361726021,1747731045018,-1269.65,0.00016986,2]
[361726022,1747731045027,-4807.64,0.00016986,2]
[361726023,1747731045037,-430.0,0.00016986,2]
[361726024,1747731045047,-430.0,0.00016986,2]
[361726025,1747731045057,-2070.17,0.00016986,2]
[361726026,1747731045066,-430.0,0.00016986,2]
[361726027,1747731045076,-884.2,0.00016986,2]
[361726028,1747731045086,-430.0,0.00016986,2]
[361726029,1747731045095,-1471.5,0.00016986,2]
[361726030,1747731045105,-430.0,0.00016986,2]
[361726031,1747731045114,-617.45,0.00016986,2]
[361726032,1747731045124,-430.0,0.00016986,2]
[361726033,1747731045133,-181.3,0.00016986,2]
[361726034,1747731045143,-430.0,0.00016986,2]
[361726035,1747731045153,-3592.57,0.00016986,2]
[361726036,1747731045162,-796.97,0.00016986,2]
[361726037,1747731045173,-430.0,0.00016986,2]
[361726038,1747731045184,-430.0,0.00016986,2]
[361726039,1747731045195,-1000.0,0.00017021,2]
[361726040,1747731045206,-513.94631093,0.00017021,2]
[361726041,1747731045215,-1000.0,0.00017021,2]
[361726042,1747731045226,-500.0,0.00017021,2]
[361726043,1747731045237,-500.0,0.00017021,2]
[361726044,1747731045247,-500.0,0.00017021,2]
[361726045,1747731045257,-500.0,0.00017021,2]
[361726046,1747731045267,-500.0,0.00017021,2]
[361726047,1747731045277,-500.0,0.00017021,2]
[361726048,1747731045286,-500.0,0.00017023,2]
[361726049,1747731045296,-500.0,0.00017037,2]
[361726050,1747731045306,-500.0,0.00017037,2]
[361726051,1747731045316,-653.00730596,0.00017075,2]
[361726052,1747731045326,-500.0,0.00017081,2]
[361726053,1747731045338,-321.67831285,0.00017091,2]
[361726054,1747731045351,-500.0,0.00017197,2]
[361726055,1747731045360,-8018.0650568,0.0001721,2]
[361726056,1747731045370,-2606.12266885,0.0001726,2]
[361726057,1747731045381,-151.0,0.0001726,2]
[361726058,1747731045390,-151.0,0.0001726,2]
[361726059,1747731045400,-151.0,0.0001726,2]
[361726060,1747731045411,-151.0,0.0001726,2]
[361726062,1747731045421,-151.0,0.0001726,2]
[361726064,1747731045430,-151.0,0.0001726,2]
[361726065,1747731045440,-218.065611,0.0001726,2]
[361726066,1747731045449,-218.065611,0.0001726,2]
[361726067,1747731045459,-430.0,0.0001726,2]
[361726069,1747731045469,-430.0,0.0001726,2]
[361726070,1747731045478,-430.0,0.0001726,2]
[361726071,1747731045489,-156.19192777,0.0001726,2]
[361726072,1747731045499,-430.0,0.0001726,2]
[361726073,1747731045508,-258.053247,0.0001726,2]
[361726074,1747731045517,-258.053247,0.0001726,2]
[361726075,1747731045528,-160.994108,0.0001726,2]
[361726076,1747731045537,-160.994108,0.0001726,2]
[361726077,1747731045547,-258.053247,0.0001726,2]
[361726078,1747731045556,-258.053247,0.0001726,2]
[361726079,1747731045566,-160.994108,0.0001726,2]
[361726081,1747731045576,-160.994108,0.0001726,2]
[361726082,1747731045586,-451.14,0.0001726,2]
[361726083,1747731045596,-155.727278,0.0001726,2]
[361726084,1747731045606,-370.822144,0.0001726,2]
[361726085,1747731045616,-430.0,0.0001726,2]
[361726087,1747731045626,-370.822144,0.0001726,2]
[361726088,1747731045636,-370.822144,0.0001726,2]
[361726089,1747731045648,-370.822144,0.0001726,2]
[361726090,1747731045658,-370.822144,0.0001726,2]
[361726091,1747731045668,-370.822147,0.0001726,2]
[361726092,1747731045678,-430.0,0.0001726,2]
[361726093,1747731045688,-430.0,0.0001726,2]
[361726094,1747731045697,-430.0,0.0001726,2]
[361726095,1747731045706,-430.0,0.0001726,2]
[361726096,1747731045718,-430.0,0.0001726,2]
[361726097,1747731045727,-430.0,0.0001726,2]
[361726098,1747731045738,-430.0,0.0001726,2]
[361726099,1747731045749,-430.0,0.0001726,2]
[361726100,1747731045758,-430.0,0.0001726,2]
[361726101,1747731045768,-430.0,0.0001726,2]
[361726102,1747731045778,-430.0,0.0001726,2]
[361726104,1747731045787,-430.0,0.0001726,2]
[361726105,1747731045798,-792.04,0.0001726,2]
[361726106,1747731045807,-771.69,0.0001726,2]
[361726107,1747731045817,-430.0,0.0001726,2]
[361726108,1747731045826,-444.13,0.0001726,2]
[361726109,1747731045836,-446.59,0.0001726,2]
[361726110,1747731045845,-430.0,0.0001726,2]
[361726111,1747731045855,-430.0,0.0001726,2]
[361726112,1747731045865,-430.0,0.0001726,2]
[361726113,1747731045875,-430.0,0.0001726,2]
[361726114,1747731045886,-430.0,0.0001726,2]
[361726115,1747731045897,-632.4,0.0001726,2]
[361726116,1747731045906,-430.0,0.0001726,2]
[361726117,1747731045916,-509.54,0.0001726,2]
[361726118,1747731045926,-430.0,0.0001726,2]
[361726119,1747731045935,-430.0,0.0001726,2]
[361726120,1747731045945,-430.0,0.0001726,2]
[361726121,1747731045955,-430.0,0.0001726,2]
[361726122,1747731045965,-430.0,0.0001726,2]
[361726123,1747731045974,-430.0,0.0001726,2]
[361726124,1747731045983,-534.41,0.0001726,2]
[361726125,1747731045994,-161.225624,0.0001726,2]
[361726126,1747731046003,-161.225624,0.0001726,2]
[361726127,1747731046013,-161.225624,0.0001726,2]
[361726128,1747731046023,-161.225624,0.0001726,2]
[361726129,1747731046033,-151.0,0.0001726,2]
[361726130,1747731046042,-369.33160456,0.0001726,2]
[361726131,1747731046053,-151.0,0.0001726,2]
[361726132,1747731046062,-151.0,0.0001726,2]
[361726133,1747731046072,-151.0,0.0001726,2]
[361726134,1747731046081,-518.16242851,0.0001726,2]
[361726135,1747731046091,-430.0,0.0001726,2]
[361726136,1747731046101,-151.0,0.0001726,2]
[361726137,1747731046110,-301.337688,0.0001726,2]
[361726138,1747731046120,-519.0761409,0.0001726,2]
[361726139,1747731046129,-430.0,0.0001726,2]
[361726140,1747731046140,-430.0,0.0001726,2]
[361726141,1747731046149,-528.69128461,0.0001726,2]
[361726142,1747731046159,-430.0,0.0001726,2]
[361726143,1747731046169,-486.68,0.0001726,2]
[361726144,1747731046180,-430.0,0.0001726,2]
[361726145,1747731046190,-510.0,0.0001726,2]
[361726146,1747731046200,-430.0,0.0001726,2]
[361726147,1747731046210,-430.0,0.0001726,2]
[361726148,1747731046219,-430.0,0.0001726,2]
[361726149,1747731046230,-823.04,0.0001726,2]
[361726150,1747731046241,-430.0,0.0001726,2]
[361726151,1747731046250,-430.0,0.0001726,2]
[361726152,1747731046260,-430.0,0.0001726,2]
[361726153,1747731046274,-430.0,0.0001726,2]
[361726154,1747731046285,-966.87,0.0001726,2]
[361726155,1747731046296,-460.44,0.0001726,2]
[361726156,1747731046306,-1701.32,0.0001726,2]
[361726157,1747731046315,-430.0,0.0001726,2]
[361726158,1747731046325,-430.0,0.0001726,2]
[361726159,1747731046339,-430.0,0.0001726,2]
[361726160,1747731046350,-459.15,0.0001726,2]
[361726161,1747731046360,-430.0,0.0001726,2]
[361726162,1747731046371,-2370.11,0.0001726,2]
[361726163,1747731046383,-430.0,0.0001726,2]
[361726164,1747731046393,-430.0,0.0001726,2]
[361726165,1747731046402,-430.0,0.0001726,2]
[361726166,1747731046412,-625.7,0.0001726,2]
[361726167,1747731046422,-3187.58,0.0001726,2]
[361726168,1747731046431,-1067.96,0.0001726,2]
[361726169,1747731046444,-1170.88,0.0001726,2]
[361726170,1747731046454,-430.0,0.0001726,2]
[361726171,1747731046464,-1394.59,0.0001726,2]
[361726172,1747731046474,-430.0,0.0001726,2]
[361726173,1747731046484,-430.0,0.0001726,2]
[361726174,1747731046496,-714.5,0.0001726,2]
[361726175,1747731046506,-430.0,0.0001726,2]
[361726176,1747731046515,-430.0,0.0001726,2]
[361726177,1747731046525,-1023.23,0.0001726,2]
[361726178,1747731046536,-430.0,0.0001726,2]
[361726179,1747731046546,-845.18,0.0001726,2]
[361726180,1747731046557,-430.0,0.0001726,2]
[361726181,1747731046567,-430.0,0.0001726,2]
[361726182,1747731046577,-430.0,0.0001726,2]
[361726183,1747731046586,-605.02,0.0001726,2]
[361726184,1747731046598,-317.09,0.0001726,2]
[361726185,1747731046607,-430.0,0.0001726,2]
[361726186,1747731046618,-430.0,0.0001726,2]
[361726187,1747731046627,-430.0,0.0001726,2]
[361726188,1747731046639,-510.0,0.0001726,2]
[361726189,1747731046649,-1425.83,0.0001726,2]
[361726190,1747731046658,-430.0,0.0001726,2]
[361726191,1747731046668,-649.17,0.0001726,2]
[361726192,1747731046678,-430.0,0.0001726,2]
[361726193,1747731046688,-430.0,0.0001726,2]
[361726194,1747731046698,-683.89,0.0001726,2]
[361726195,1747731046707,-845.85,0.0001726,2]
[361726196,1747731046717,-524.36,0.0001726,2]
[361726197,1747731046726,-1834.61,0.0001726,2]
[361726198,1747731046736,-832.7,0.0001726,2]
[361726199,1747731046745,-4757.36,0.0001726,2]
[361726200,1747731046755,-1280.71,0.0001726,2]
[361726201,1747731046765,-1301.44,0.0001726,2]
[361726202,1747731046774,-430.0,0.0001726,2]
[361726203,1747731046784,-1033.93,0.0001726,2]
[361726204,1747731046793,-430.0,0.0001726,2]
[361726205,1747731046803,-574.71,0.0001726,2]
[361726206,1747731046813,-511.08,0.0001726,2]
[361726207,1747731046824,-430.0,0.0001726,2]
[361726208,1747731046833,-430.0,0.0001726,2]
[361726209,1747731046844,-493.54,0.0001726,2]
[361726210,1747731046853,-582.09,0.0001726,2]
[361726211,1747731046863,-430.0,0.0001726,2]
[361726212,1747731046873,-2227.23,0.0001726,2]
[361726213,1747731046883,-865.79,0.0001726,2]
[361726214,1747731046892,-827.76,0.0001726,2]
[361726215,1747731046902,-813.4,0.0001726,2]
[361726216,1747731046912,-430.0,0.0001726,2]
[361726217,1747731046922,-430.0,0.0001726,2]
[361726218,1747731046931,-491.02,0.0001726,2]
[361726219,1747731046941,-1058.24,0.0001726,2]
[361726220,1747731046951,-812.09,0.0001726,2]
[361726221,1747731046963,-490.29,0.0001726,2]
[361726222,1747731046973,-761.83,0.0001726,2]
[361726223,1747731046983,-477.65,0.0001726,2]
[361726224,1747731046993,-1269.65,0.0001726,2]
[361726225,1747731047003,-4807.64,0.0001726,2]
[361726226,1747731047012,-430.0,0.0001726,2]
[361726227,1747731047022,-430.0,0.0001726,2]
[361726228,1747731047031,-2070.17,0.0001726,2]
[361726229,1747731047041,-430.0,0.0001726,2]
[361726230,1747731047051,-884.2,0.0001726,2]
[361726231,1747731047060,-430.0,0.0001726,2]
[361726232,1747731047071,-1471.5,0.0001726,2]
[361726233,1747731047080,-430.0,0.0001726,2]
[361726234,1747731047090,-617.45,0.0001726,2]
[361726235,1747731047100,-430.0,0.0001726,2]
[361726236,1747731047244,-430.0,0.0001726,2]
[361726237,1747731047255,-3592.57,0.0001726,2]
[361726238,1747731047265,-796.97,0.0001726,2]
[361726239,1747731047275,-430.0,0.0001726,2]
[361726240,1747731047285,-430.0,0.0001726,2]
[361726241,1747731047295,-500.0,0.00017274,2]
[361726242,1747731047305,-500.0,0.00017274,2]
[361726243,1747731047315,-500.0,0.00017274,2]
[361726244,1747731047324,-500.0,0.00017276,2]
[361726245,1747731047342,-500.0,0.00017276,2]
[361726246,1747731047356,-5000.0,0.00017292,2]
[361726247,1747731047366,-3000.0,0.00017359,3]
[361726248,1747731047375,-187.150425,0.00017399,2]
[361726249,1747731047385,-151.0,0.000174,2]
[361726250,1747731047395,-151.0,0.00017405,2]
[361726251,1747731047405,-218.065611,0.00017405,2]
[361726252,1747731047415,-218.065611,0.00017405,2]
[361726253,1747731047425,-500.0,0.00017407,2]
[361726254,1747731047434,-160.994108,0.00017452,2]
[361726255,1747731047443,-160.994108,0.00017452,2]
[361726256,1747731047453,-161.225624,0.00017452,2]
[361726257,1747731047464,-161.225624,0.00017452,2]
[361726258,1747731047474,-4004.0,0.000175,2]
[361726259,1747731047483,-151.0,0.000175,2]
[361726260,1747731047493,-8018.0650568,0.00017521,2]
[361726261,1747731047503,-177.320892,0.00017533,2]
[361726262,1747731047513,-151.0,0.00017533,2]
[361726263,1747731047522,-258.053247,0.00017533,2]
[361726264,1747731047532,-258.053247,0.00017533,2]
[361726265,1747731047542,-151.0,0.00017534,2]
[361726266,1747731047551,-151.0,0.00017534,2]
[361726267,1747731047561,-207.639291,0.00017534,2]
[361726268,1747731047570,-218.065611,0.00017534,2]
[361726269,1747731047579,-218.065611,0.00017534,2]
[361726270,1747731047589,-218.065611,0.00017534,2]
[361726271,1747731047599,-218.065611,0.00017534,2]
[361726272,1747731047609,-430.0,0.00017534,2]
[361726273,1747731047619,-430.0,0.00017534,2]
[361726274,1747731047628,-430.0,0.00017534,2]
[361726275,1747731047638,-430.0,0.00017534,2]
[361726276,1747731047648,-258.053247,0.00017534,2]
[361726277,1747731047659,-258.053247,0.00017534,2]
[361726278,1747731047668,-160.994108,0.00017534,2]
[361726279,1747731047678,-258.053247,0.00017534,2]
[361726280,1747731047688,-258.05325,0.00017534,2]
[361726281,1747731047698,-160.994104,0.00017534,2]
[361726282,1747731047708,-451.14,0.00017534,2]
[361726283,1747731047717,-430.0,0.00017534,2]
[361726284,1747731047726,-430.0,0.00017534,2]
[361726285,1747731047736,-430.0,0.00017534,2]
[361726286,1747731047746,-430.0,0.00017534,2]
[361726287,1747731047755,-430.0,0.00017534,2]
[361726288,1747731047765,-430.0,0.00017534,2]
[361726289,1747731047774,-430.0,0.00017534,2]
[361726290,1747731047785,-430.0,0.00017534,2]
[361726291,1747731047794,-430.0,0.00017534,2]
[361726292,1747731047805,-430.0,0.00017534,2]
[361726293,1747731047814,-430.0,0.00017534,2]
[361726294,1747731047824,-430.0,0.00017534,2]
[361726295,1747731047833,-383.95401713,0.00017534,2]
[361726296,1747731047843,-792.04,0.00017534,2]
[361726297,1747731047852,-771.69,0.00017534,2]
[361726298,1747731047862,-430.0,0.00017534,2]
[361726299,1747731047871,-444.13,0.00017534,2]
[361726300,1747731047881,-446.59,0.00017534,2]
[361726301,1747731047891,-430.0,0.00017534,2]
[361726302,1747731047900,-430.0,0.00017534,2]
[361726303,1747731047910,-430.0,0.00017534,2]
[361726304,1747731047920,-430.0,0.00017534,2]
[361726305,1747731047930,-430.0,0.00017534,2]
[361726306,1747731047940,-632.4,0.00017534,2]
[361726307,1747731047949,-430.0,0.00017534,2]
[361726308,1747731047958,-509.54,0.00017534,2]
[361726309,1747731047967,-430.0,0.00017534,2]
[361726310,1747731047976,-430.0,0.00017534,2]
[361726311,1747731047986,-430.0,0.00017534,2]
[361726312,1747731047995,-430.0,0.00017534,2]
[361726313,1747731048005,-430.0,0.00017534,2]
[361726314,1747731048014,-430.0,0.00017534,2]
[361726315,1747731048024,-534.41,0.00017534,2]
[361726316,1747731048035,-161.225624,0.00017534,2]
[361726317,1747731048045,-161.225631,0.00017534,2]
[361726318,1747731048055,-430.0,0.00017534,2]
[361726319,1747731048065,-430.0,0.00017534,2]
[361726320,1747731048076,-430.0,0.00017534,2]
[361726321,1747731048086,-430.0,0.00017534,2]
[361726322,1747731048095,-486.68,0.00017534,2]
[361726323,1747731048105,-430.0,0.00017534,2]
[361726324,1747731048115,-186.75713331,0.00017534,2]
[361726325,1747731048124,-430.0,0.00017534,2]
[361726326,1747731048134,-430.0,0.00017534,2]
[361726327,1747731048144,-823.04,0.00017534,2]
[361726328,1747731048153,-430.0,0.00017534,2]
[361726329,1747731048162,-430.0,0.00017534,2]
[361726330,1747731048171,-430.0,0.00017534,2]
[361726331,1747731048182,-430.0,0.00017534,2]
[361726332,1747731048191,-966.87,0.00017534,2]
[361726333,1747731048201,-460.44,0.00017534,2]
[361726334,1747731048211,-1701.32,0.00017534,2]
[361726335,1747731048221,-430.0,0.00017534,2]
[361726336,1747731048232,-430.0,0.00017534,2]
[361726337,1747731048242,-430.0,0.00017534,2]
[361726338,1747731048252,-459.15,0.00017534,2]
[361726339,1747731048262,-430.0,0.00017534,2]
[361726340,1747731048272,-2370.11,0.00017534,2]
[361726341,1747731048281,-430.0,0.00017534,2]
[361726342,1747731048291,-430.0,0.00017534,2]
[361726343,1747731048301,-430.0,0.00017534,2]
[361726344,1747731048311,-625.7,0.00017534,2]
[361726345,1747731048320,-3187.58,0.00017534,2]
[361726346,1747731048330,-1067.96,0.00017534,2]
[361726347,1747731048343,-1170.88,0.00017534,2]
[361726348,1747731048353,-430.0,0.00017534,2]
[361726349,1747731048363,-1394.59,0.00017534,2]
[361726350,1747731048373,-430.0,0.00017534,2]
[361726351,1747731048385,-430.0,0.00017534,2]
[361726352,1747731048395,-714.5,0.00017534,2]
[361726353,1747731048405,-430.0,0.00017534,2]
[361726354,1747731048416,-430.0,0.00017534,2]
[361726355,1747731048426,-1023.23,0.00017534,2]
[361726356,1747731048436,-430.0,0.00017534,2]
[361726357,1747731048446,-845.18,0.00017534,2]
[361726358,1747731048457,-430.0,0.00017534,2]
[361726359,1747731048467,-430.0,0.00017534,2]
[361726360,1747731048477,-430.0,0.00017534,2]
[361726361,1747731048490,-605.02,0.00017534,2]
[361726362,1747731048501,-430.0,0.00017534,2]
[361726363,1747731048513,-430.0,0.00017534,2]
[361726364,1747731048523,-430.0,0.00017534,2]
[361726365,1747731048533,-1425.83,0.00017534,2]
[361726366,1747731048543,-430.0,0.00017534,2]
[361726367,1747731048552,-649.17,0.00017534,2]
[361726368,1747731048562,-430.0,0.00017534,2]
[361726369,1747731048571,-430.0,0.00017534,2]
[361726370,1747731048581,-683.89,0.00017534,2]
[361726371,1747731048591,-845.85,0.00017534,2]
[361726372,1747731048601,-524.36,0.00017534,2]
[361726373,1747731048611,-1834.61,0.00017534,2]
[361726374,1747731048620,-832.7,0.00017534,2]
[361726375,1747731048630,-4757.36,0.00017534,2]
[361726376,1747731048640,-1280.71,0.00017534,2]
[361726377,1747731048649,-1301.44,0.00017534,2]
[361726378,1747731048659,-430.0,0.00017534,2]
[361726379,1747731048669,-1033.93,0.00017534,2]
[361726380,1747731048679,-430.0,0.00017534,2]
[361726381,1747731048689,-574.71,0.00017534,2]
[361726382,1747731048699,-511.08,0.00017534,2]
[361726383,1747731048709,-430.0,0.00017534,2]
[361726384,1747731048719,-430.0,0.00017534,2]
[361726385,1747731048729,-493.54,0.00017534,2]
[361726386,1747731048739,-582.09,0.00017534,2]
[361726387,1747731048750,-430.0,0.00017534,2]
[361726388,1747731048760,-2227.23,0.00017534,2]
[361726389,1747731048770,-865.79,0.00017534,2]
[361726390,1747731048780,-827.76,0.00017534,2]
[361726391,1747731048790,-813.4,0.00017534,2]
[361726392,1747731048800,-430.0,0.00017534,2]
[361726393,1747731048810,-430.0,0.00017534,2]
[361726394,1747731048820,-1058.24,0.00017534,2]
[361726395,1747731048830,-812.09,0.00017534,2]
[361726396,1747731048840,-490.29,0.00017534,2]
[361726397,1747731048850,-761.83,0.00017534,2]
[361726398,1747731048860,-477.65,0.00017534,2]
[361726399,1747731048870,-1269.65,0.00017534,2]
[361726400,1747731048880,-4807.64,0.00017534,2]
[361726401,1747731048890,-233.25082279,0.00017534,2]
[361726402,1747731048900,-430.0,0.00017534,2]
[361726403,1747731048910,-2070.17,0.00017534,2]
[361726404,1747731048920,-430.0,0.00017534,2]
[361726405,1747731048930,-884.2,0.00017534,2]
[361726406,1747731048939,-430.0,0.00017534,2]
[361726407,1747731048950,-1471.5,0.00017534,2]
[361726408,1747731048960,-430.0,0.00017534,2]
[361726409,1747731048971,-617.45,0.00017534,2]
[361726410,1747731048980,-430.0,0.00017534,2]
[361726411,1747731048990,-430.0,0.00017534,2]
[361726412,1747731049000,-3592.57,0.00017534,2]
[361726413,1747731049009,-796.97,0.00017534,2]
[361726414,1747731049019,-430.0,0.00017534,2]
[361726415,1747731049029,-329.45105904,0.00017534,2]
[361726416,1747731049039,-1500.0,0.00017568,2]
[361726417,1747731049049,-1000.0,0.00017569,2]
[361726418,1747731049058,-1007.30167474,0.00017569,2]
[361726419,1747731049068,-1000.0,0.00017569,2]
[361726420,1747731049079,-1000.0,0.00017569,2]
[361726421,1747731049089,-507.39645196,0.00017569,2]
[361726422,1747731049099,-290.59976122,0.00017569,2]
[361726423,1747731049109,-1000.0,0.00017585,2]
[361726424,1747731049119,-1000.0,0.00017585,2]
[361726425,1747731049129,-218.065611,0.000176,2]
[361726426,1747731049138,-218.065611,0.000176,2]
[361726427,1747731049148,-50000.0,0.000176,7]
[361726428,1747731049158,-314.48519801,0.000176,7]
[361726429,1747731049168,-212.38718278,0.000176,7]
[361726430,1747731049178,-12640.66806714,0.000176,7]
[361726431,1747731049188,-1000.0,0.00017629,2]
[361726432,1747731049198,-26867.44120046,0.0001763,2]
[361726433,1747731049207,-420.63720867,0.00017651,2]
[361726434,1747731049217,-3500.0,0.00017659,3]
[361726435,1747731049227,-218.065611,0.00017661,2]
[361726436,1747731049237,-218.065611,0.00017661,2]
[361726437,1747731049247,-203.13635759,0.00017699,3]
[361726438,1747731049257,-314.48519801,0.00017699,3]
[361726439,1747731049267,-212.38718278,0.00017699,3]
[361726440,1747731049276,-12640.66806714,0.00017699,3]
[361726441,1747731049286,-1000.0,0.00017745,2]
[361726442,1747731049296,-453.44,0.00017797,3]
[361726443,1747731049305,-151.0,0.00017808,2]
[361726444,1747731049315,-218.065611,0.00017808,2]
[361726445,1747731049325,-218.065611,0.00017808,2]
[361726446,1747731049336,-218.065611,0.00017808,2]
[361726447,1747731049347,-218.065611,0.00017808,2]